bitfinex-derivatives/quotes_BTCF0:USTF0_20241025
["timestamp","ask_amount","ask_price","bid_price","bid_amount"]
[1729897575217,0.3608,66310.0,66308.0,0.075521]
[1729897575607,0.3608,66323.0,66308.0,0.45244]
[1729897575799,0.3608,66323.0,66305.0,0.3608]
[1729897575800,0.3608,66323.0,66311.0,0.3608]
[1729897576515,0.3608,66323.0,66318.0,0.07551]
[1729897576817,0.3608,66335.0,66320.0,0.3608]
[1729897577004,0.3608,66335.0,66324.0,0.04492773]
[1729897577206,0.3608,66335.0,66326.0,0.04492773]
[1729897577405,0.3608,66335.0,66332.0,0.075494]
[1729897578016,0.3608,66335.0,66333.0,0.075493]
[1729897578220,0.3608,66335.0,66334.0,0.23976]
[1729897578612,0.16782872,66344.0,66338.0,0.075487]
[1729897579012,0.3608,66352.0,66334.0,0.23976]
[1729897579013,0.16782872,66351.0,66341.0,0.075484]
[1729897579214,0.16782872,66351.0,66344.0,0.075481]
[1729897579414,0.16782872,66351.0,66339.0,0.3608]
[1729897579415,0.3608,66352.0,66349.0,0.075475]
[1729897579719,0.3608,66360.0,66340.0,0.04492708]
[1729897579720,0.3608,66360.0,66351.0,0.075473]
[1729897579913,0.3608,66366.0,66348.0,0.3608]
[1729897580105,0.16782872,66375.0,66363.0,0.075459]
[1729897580313,0.16782872,66375.0,66364.0,0.23976]
[1729897581803,0.3608,66379.0,66366.0,0.075455]
[1729897582009,0.16782872,66374.0,66367.0,0.075454]
[1729897582307,0.3608,66379.0,66369.0,0.3608]
[1729897582507,0.16782872,66380.0,66366.0,0.0447914]
[1729897582799,0.16782872,66380.0,66365.0,0.27126859]
[1729897583003,0.16782872,66380.0,66367.0,0.23972]
[1729897583297,0.3608,66385.0,66375.0,0.075445]
[1729897583493,0.3608,66385.0,66378.0,0.075442]
[1729897584085,0.52862872,66379.0,66371.0,0.07545]
[1729897584487,0.52862872,66379.0,66367.0,0.23972]
[1729897584797,0.52862872,66379.0,66370.0,0.07545]
[1729897586092,0.52862872,66379.0,66371.0,0.075449]
[1729897586580,0.52862872,66379.0,66372.0,0.23968]
[1729897587193,0.16782872,66374.0,66366.0,0.4055914]
[1729897587496,0.16782872,66368.0,66367.0,0.23968]
[1729897587999,0.3608,66373.0,66371.0,0.07545]
[1729897588183,0.3608,66386.0,66372.0,0.452]
[1729897588184,0.3608,66380.0,66372.0,0.452]
[1729897588388,0.3608,66380.0,66373.0,0.23964]
[1729897588691,0.3608,66380.0,66377.0,0.075443]
[1729897588894,0.3608,66386.0,66377.0,0.075443]
[1729897589487,0.3608,66386.0,66373.0,0.60044]
[1729897589689,0.16782872,66380.0,66373.0,0.60044]
[1729897589884,0.52862872,66380.0,66373.0,0.60044]
[1729897590092,0.16782872,66374.0,66373.0,0.23964]
[1729897590892,0.52862872,66380.0,66373.0,0.2396]
[1729897591692,0.3608,66386.0,66374.0,0.3608]
[1729897591899,0.16782872,66385.0,66374.0,0.3608]
[1729897592304,0.16782872,66385.0,66377.0,0.075443]
[1729897593203,0.00204,66386.0,66376.0,0.3608]
[1729897593410,0.3608,66394.0,66382.0,0.3608]
[1729897593588,0.3608,66408.0,66388.0,0.3608]
[1729897593791,0.436209,66408.0,66395.0,0.075422]
[1729897593993,0.16782872,66406.0,66396.0,0.23096]
[1729897594599,0.16782872,66406.0,66396.0,0.306381]
[1729897595089,0.36288001,66408.0,66398.0,0.075419]
[1729897595292,0.3608,66408.0,66400.0,0.075417]
[1729897595492,0.3608,66416.0,66396.0,0.23096]
[1729897595696,0.3608,66416.0,66401.0,0.3608]
[1729897595904,0.3608,66416.0,66404.0,0.075412]
[1729897596292,0.436199,66416.0,66404.0,0.075412]
[1729897596995,0.53062872,66419.0,66394.0,0.3608]
[1729897596996,0.075415,66402.0,66398.0,0.23092]
[1729897597201,0.3608,66399.0,66398.0,0.23092]
[1729897598288,0.16782872,66398.0,66386.0,0.3608]
[1729897598507,0.52862872,66399.0,66387.0,0.23092]
[1729897598508,0.16782872,66391.0,66387.0,0.23092]
[1729897598690,0.16782872,66391.0,66386.0,0.3608]
[1729897598893,0.16782872,66391.0,66388.0,0.23092]
[1729897599088,0.53062872,66392.0,66388.0,0.23092]
[1729897599089,0.3628,66392.0,66388.0,0.23092]
[1729897599292,0.3608,66392.0,66388.0,0.23092]
[1729897599995,0.3608,66399.0,66389.0,0.68276]
[1729897600193,0.3608,66399.0,66396.0,0.075422]
[1729897600395,0.3608,66399.0,66397.0,0.07542]
[1729897600602,0.3608,66409.0,66393.0,0.45184]
[1729897600811,0.3608,66409.0,66400.0,0.3608]
[1729897600989,0.3608,66409.0,66402.0,0.075415]
[1729897601190,0.3608,66409.0,66400.0,0.3608]
[1729897601191,0.3608,66409.0,66403.0,0.075414]
[1729897601500,0.3608,66409.0,66405.0,0.075411]
[1729897602117,0.3608,66409.0,66400.0,0.3608]
[1729897602118,0.3608,66409.0,66400.0,0.436217]
[1729897602301,0.3608,66409.0,66400.0,0.3608]
[1729897602502,0.3608,66409.0,66402.0,0.075415]
[1729897602695,0.3608,66409.0,66405.0,0.075411]
[1729897602905,0.3608,66409.0,66400.0,0.3608]
[1729897603206,0.3608,66409.0,66388.0,0.01747728]
[1729897603207,0.16782872,66400.0,66397.0,0.23088]
[1729897603506,0.3608,66403.0,66397.0,0.23088]
[1729897603900,0.3608,66403.0,66400.0,0.075416]
[1729897604102,0.3608,66403.0,66402.0,0.075415]
[1729897604306,0.3608,66415.0,66401.0,0.45720891]
[1729897604503,0.3608,66415.0,66408.0,0.33565744]
[1729897604805,0.3628,66423.0,66408.0,0.33565744]
[1729897604806,0.3628,66423.0,66417.0,0.075398]
[1729897605012,0.3628,66423.0,66418.0,0.075397]
[1729897605308,0.3608,66423.0,66413.0,0.436202]
[1729897605502,0.3608,66423.0,66414.0,0.23088]
[1729897605807,0.3608,66423.0,66415.0,0.0754]
[1729897606006,0.3608,66423.0,66414.0,0.23088]
[1729897606200,0.3608,66423.0,66413.0,0.3608]
[1729897606402,0.3608,66423.0,66414.0,0.22212]
[1729897607611,0.3608,66423.0,66415.0,0.0754]
[1729897607809,0.3608,66423.0,66416.0,0.075398]
[1729897609207,0.16782872,66431.0,66414.0,0.22212]
[1729897609208,0.3608,66426.0,66414.0,0.22212]
[1729897609707,0.3608,66426.0,66414.0,0.297521]
[1729897610211,0.3608,66426.0,66414.0,0.22212]
[1729897610403,0.16782872,66419.0,66415.0,0.22208]
[1729897610906,0.52862872,66419.0,66412.0,0.22208]
[1729897611094,0.436202,66413.0,66412.0,0.22208]
[1729897611500,0.3608,66413.0,66402.0,0.174814]
[1729897611703,0.075405,66411.0,66403.0,0.22208]
[1729897611908,0.3608,66415.0,66403.0,0.22208]
[1729897612209,0.075396,66419.0,66408.0,0.075408]
[1729897612403,0.075396,66419.0,66406.0,0.3608]
[1729897613303,0.3608,66420.0,66411.0,0.075405]
[1729897613503,0.075398,66417.0,66406.0,0.436209]
[1729897614110,0.075398,66417.0,66407.0,0.22208]
[1729897614407,0.075398,66417.0,66407.0,0.297489]
[1729897614798,0.10864226,66418.0,66407.0,0.22208]
[1729897614799,0.3608,66409.0,66407.0,0.22208]
[1729897615005,0.3608,66414.0,66407.0,0.297489]
[1729897615400,0.3608,66414.0,66402.0,4e-07]
[1729897615401,0.10864226,66407.0,66402.0,4e-07]
[1729897615617,0.3608,66403.0,66392.0,4e-07]
[1729897615807,0.075437,66383.0,66381.0,0.19184853]
[1729897616111,0.3608,66382.0,66381.0,0.10195986]
[1729897617011,0.3608,66382.0,66381.0,0.32403986]
[1729897618415,0.3608,66382.0,66381.0,0.31463986]
[1729897619411,0.36284,66393.0,66381.0,0.31463986]
[1729897619715,0.3608,66393.0,66384.0,0.075434]
[1729897619906,0.3608,66393.0,66381.0,0.37432369]
[1729897620103,0.3608,66393.0,66388.0,0.07543]
[1729897620418,0.43621,66406.0,66392.0,0.3608]
[1729897620607,0.3608,66406.0,66393.0,0.1047]
[1729897620808,0.3608,66406.0,66393.0,0.16438383]
[1729897621004,0.3608,66406.0,66398.0,0.075418]
[1729897621306,0.3608,66406.0,66394.0,0.05968383]
[1729897621307,0.3608,66406.0,66400.0,0.075417]
[1729897621508,0.3608,66406.0,66398.0,0.3608]
[1729897621710,0.3608,66406.0,66398.0,0.42048383]
[1729897621915,0.3608,66409.0,66408.0,0.075408]
[1729897622107,0.3608,66421.0,66408.0,0.57348]
[1729897622308,0.36292,66425.0,66419.0,0.075396]
[1729897622508,0.3608,66425.0,66416.0,0.05968383]
[1729897622719,0.3608,66425.0,66409.0,0.1967]
[1729897622720,0.3608,66431.0,66421.0,0.3608]
[1729897623014,0.3608,66431.0,66422.0,0.075391]
[1729897623210,0.3608,66431.0,66426.0,0.075387]
[1729897623617,0.3628,66437.0,66432.0,0.075381]
[1729897623821,0.3608,66437.0,66433.0,0.07538]
[1729897624213,0.16754664,66440.0,66431.0,0.21268]
[1729897624412,0.16754664,66440.0,66433.0,0.07538]
[1729897624616,0.16754664,66440.0,66432.0,0.05968383]
[1729897624617,0.53034664,66446.0,66431.0,0.27236383]
[1729897624820,0.3608,66446.0,66433.0,0.05968383]
[1729897625026,0.3608,66446.0,66434.0,0.05968383]
[1729897625321,0.3608,66446.0,66435.0,0.22461299]
[1729897625521,0.3608,66446.0,66437.0,0.075375]
[1729897625817,0.3608,66446.0,66444.0,0.075367]
[1729897626218,0.3608,66446.0,66438.0,0.0982]
[1729897626219,0.3608,66451.0,66446.0,0.075364]
[1729897626520,0.3608,66451.0,66448.0,0.075363]
[1729897626823,0.3608,66451.0,66438.0,0.0982]
[1729897627128,0.16754664,66439.0,66432.0,0.05968383]
[1729897627422,0.16754664,66439.0,66433.0,0.2126]
[1729897628018,0.16754664,66434.0,66433.0,0.2126]
[1729897628414,0.52834664,66434.0,66433.0,0.2126]
[1729897628616,0.97990664,66434.0,66411.0,0.075404]
[1729897628820,0.52834664,66413.0,66408.0,0.16068383]
[1729897629018,0.52834664,66413.0,66410.0,0.2126]
[1729897630017,0.52834664,66413.0,66411.0,0.2126]
[1729897630941,0.52834664,66413.0,66401.0,0.3608]
[1729897630942,0.60374964,66413.0,66401.0,0.3608]
[1729897631127,0.3608,66413.0,66405.0,0.20412]
[1729897631820,0.16754664,66410.0,66401.0,0.3608]
[1729897632023,0.16754664,66403.0,66396.0,0.1049]
[1729897632223,0.3608,66398.0,66397.0,0.20412]
[1729897633029,0.16754664,66397.0,66395.0,0.20412]
[1729897633826,0.36284,66398.0,66390.0,0.37996]
[1729897634126,0.16754664,66393.0,66390.0,0.37996]
[1729897634320,0.3608,66391.0,66390.0,0.37996]
[1729897634920,0.3608,66398.0,66390.0,0.37996]
[1729897635129,0.3608,66398.0,66392.0,0.075426]
[1729897635326,0.3608,66398.0,66394.0,0.075424]
[1729897635528,0.3608,66411.0,66394.0,0.3608]
[1729897635529,0.3608,66404.0,66394.0,0.3608]
[1729897635927,0.3608,66398.0,66393.0,0.20412]
[1729897636328,0.3608,66398.0,66390.0,0.37996]
[1729897636528,0.3608,66392.0,66390.0,0.37996]
[1729897637228,0.3608,66398.0,66390.0,0.37996]
[1729897637630,0.3608,66398.0,66391.0,0.20412]
[1729897638027,0.3608,66398.0,66390.0,0.37996]
[1729897638636,0.3608,66391.0,66390.0,0.37996]
[1729897639625,0.3608,66404.0,66390.0,0.37996]
[1729897639833,0.3608,66404.0,66392.0,0.075426]
[1729897640332,0.3608,66404.0,66393.0,0.075425]
[1729897640537,0.3608,66404.0,66399.0,0.075418]
[1729897640729,0.3608,66404.0,66400.0,0.075417]
[1729897641039,0.3608,66404.0,66401.0,0.20416]
[1729897641436,0.3608,66404.0,66402.0,0.0975]
[1729897642137,0.002,66407.0,66402.0,0.0975]
[1729897642439,0.3608,66420.0,66410.0,0.075405]
[1729897642634,0.436188,66426.0,66409.0,0.05968383]
[1729897642835,0.436188,66426.0,66408.0,0.69589328]
[1729897642836,0.416188,66426.0,66413.0,0.075402]
[1729897643037,0.3608,66426.0,66418.0,0.075397]
[1729897643240,0.3608,66426.0,66421.0,0.436193]
[1729897643542,0.3608,66426.0,66422.0,0.20416]
[1729897643846,0.002,66439.0,66428.0,0.075385]
[1729897644142,0.52834664,66439.0,66428.0,0.436185]
[1729897644340,0.52834664,66439.0,66428.0,0.3608]
[1729897645433,0.3608,66439.0,66428.0,0.3608]
[1729897645951,0.16754664,66433.0,66428.0,0.3608]
[1729897646136,0.3608,66439.0,66428.0,0.3608]
[1729897646137,0.52834664,66439.0,66428.0,0.3608]
[1729897646639,0.52834664,66439.0,66431.0,0.075382]
[1729897646640,0.3608,66439.0,66431.0,0.075382]
[1729897647039,0.3608,66453.0,66436.0,0.3608]
[1729897647347,0.3608,66461.0,66451.0,0.3608]
[1729897647534,0.3608,66461.0,66452.0,0.20412]
[1729897647733,0.16754664,66456.0,66452.0,0.20412]
[1729897647945,0.3608,66469.0,66452.0,0.20412]
[1729897647946,0.16754664,66462.0,66452.0,0.20412]
[1729897648243,0.3608,66463.0,66453.0,0.075357]
[1729897648645,0.3608,66463.0,66457.0,0.3608]
[1729897649347,0.3608,66463.0,66452.0,0.20412]
[1729897649348,0.075349,66460.0,66452.0,0.20412]
[1729897649536,0.16754664,66459.0,66451.0,0.3608]
[1729897649841,0.3608,66452.0,66442.0,0.075369]
[1729897650232,0.3608,66452.0,66437.0,0.07763232]
[1729897650435,0.16754664,66451.0,66437.0,0.00225732]
[1729897650653,0.16754664,66451.0,66438.0,0.20408]
[1729897650837,0.16754664,66451.0,66439.0,0.20408]
[1729897651240,0.3628,66452.0,66439.0,0.20408]
[1729897651551,0.16754664,66451.0,66428.0,0.42048383]
[1729897651738,0.16754664,66445.0,66401.0,0.134833]
[1729897651940,0.16754664,66451.0,56600.0,0.09199898]
[1729897651941,0.075474,66351.0,66328.0,0.61459374]
[1729897652136,0.075465,66358.0,66331.0,0.075495]
[1729897652345,0.075465,66358.0,66330.0,0.3608]
[1729897652346,0.3608,66360.0,66338.0,0.16166026]
[1729897652641,0.52834664,66363.0,66359.0,1.59609263]
[1729897652843,0.52834664,66363.0,66361.0,0.09609263]
[1729897653040,0.45223859,66362.0,66359.0,1.5]
[1729897653245,0.07547,66354.0,66349.0,0.25752]
[1729897653554,0.52834664,66350.0,66349.0,0.25752]
[1729897654247,0.52834664,66350.0,66349.0,1.75752]
[1729897654450,0.52846096,66350.0,66349.0,1.75752]
[1729897654748,0.52834664,66350.0,66349.0,1.7576]
[1729897655948,0.3608,66350.0,66349.0,1.85369263]
[1729897656349,0.52834664,66350.0,66349.0,1.85369263]
[1729897657451,0.3608,66350.0,66349.0,1.85369263]
[1729897658048,0.52834664,66350.0,66349.0,1.85369263]
[1729897658446,0.3608,66350.0,66349.0,1.85369263]
[1729897658643,0.52846762,66350.0,66349.0,1.85369263]
[1729897658847,0.52834664,66350.0,66349.0,1.5]
[1729897659041,0.62050664,66350.0,66340.0,0.25768]
[1729897659239,0.69589328,66341.0,66340.0,0.25768]
[1729897659646,0.69589328,66341.0,66340.0,0.35377263]
[1729897660242,0.69589328,66341.0,66340.0,1.85377263]
[1729897660844,0.69589328,66341.0,66340.0,1.5]
[1729897661043,0.69589328,66341.0,66340.0,1.74832]
[1729897661249,1.14809328,66341.0,66340.0,1.5]
[1729897661450,1.14809328,66341.0,66318.0,0.24832]
[1729897661451,0.0755,66327.0,66318.0,0.24832]
[1729897661748,0.3608,66326.0,66323.0,0.09609263]
[1729897661953,0.16754664,66323.0,66318.0,0.24832]
[1729897662141,0.3608,66319.0,66318.0,0.24832]
[1729897662340,0.3608,66319.0,66318.0,1.74832]
[1729897662648,0.3608,66319.0,66318.0,1.84441263]
[1729897664140,0.52834664,66319.0,66318.0,1.5]
[1729897666367,0.52853345,66319.0,66318.0,1.5]
[1729897666572,0.52852163,66319.0,66318.0,1.5]
[1729897666773,0.52853345,66319.0,66318.0,1.5]
[1729897666978,0.075509,66320.0,66313.0,0.3608]
[1729897667278,0.16754664,66315.0,66313.0,0.45689263]
[1729897667780,0.075545,66287.0,66286.0,0.37845243]
[1729897667979,0.07555,66283.0,66272.0,0.075561]
[1729897668167,0.07555,66283.0,66270.0,0.3608]
[1729897668168,0.16754664,66277.0,66276.0,0.09609263]
[1729897668372,0.16754664,66277.0,66276.0,1.09609263]
[1729897669882,0.16768432,66277.0,66276.0,1.09609263]
[1729897670078,0.16754664,66277.0,66276.0,1.09609263]
[1729897670272,0.16770655,66277.0,66276.0,1.0]
[1729897670472,0.16766319,66277.0,66276.0,1.0]
[1729897670788,0.62018664,66277.0,66276.0,1.0]
[1729897672273,0.62018664,66277.0,66259.0,0.3608]
[1729897672274,1.22018664,66277.0,66259.0,0.3608]
[1729897672479,0.075569,66265.0,66264.0,0.09609263]
[1729897673192,0.3608,66270.0,66264.0,0.09609263]
[1729897673379,0.3608,66270.0,66264.0,0.65609263]
[1729897673570,0.16754664,66265.0,66264.0,0.65609263]
[1729897673981,0.00018417,66265.0,66264.0,0.65609263]
[1729897674277,0.3608,66278.0,66264.0,0.65609263]
[1729897674590,0.3608,66287.0,66277.0,0.09609263]
[1729897674913,0.16754664,66275.0,66271.0,0.24856]
[1729897675278,0.16754664,66275.0,66274.0,0.09609263]
[1729897676388,0.16754664,66278.0,66274.0,0.09609263]
[1729897676580,0.16754664,66278.0,66277.0,0.09609263]
[1729897677284,0.16770873,66278.0,66277.0,0.09609263]
[1729897677590,0.16754664,66278.0,66277.0,0.09609263]
[1729897680589,0.075565,66270.0,66269.0,0.3161]
[1729897680790,0.075565,66270.0,66269.0,0.41219263]
[1729897681285,0.00204,66272.0,66269.0,0.48775863]
[1729897681494,0.07555,66283.0,66271.0,0.09609263]
[1729897681793,0.16754664,66274.0,66269.0,0.3161]
[1729897682086,0.075565,66270.0,66269.0,0.2173]
[1729897682288,0.075565,66270.0,66238.0,0.16754664]
[1729897682289,0.075579,66258.0,66230.0,0.3608]
[1729897682494,0.075602,66238.0,66237.0,0.09609263]
[1729897682985,0.075602,66238.0,66230.0,0.3608]
[1729897683177,0.075602,66238.0,66237.0,0.00196398]
[1729897683178,0.075601,66238.0,66237.0,0.00196398]
[1729897683377,0.075601,66238.0,66180.0,0.02268]
[1729897683378,0.07563,66213.0,66208.0,0.3608]
[1729897683575,0.6,66238.0,66208.0,0.45689263]
[1729897683576,0.16754664,66210.0,66208.0,0.45689263]
[1729897683887,0.16754664,66210.0,66208.0,0.3608]
[1729897684071,0.00212,66241.0,66208.0,0.3608]
[1729897684072,0.16754664,66227.0,66209.0,0.3608]
[1729897684282,0.16754664,66232.0,66224.0,0.075617]
[1729897684483,0.52834664,66239.0,66228.0,0.3608]
[1729897684683,0.16754664,66239.0,66234.0,0.075605]
[1729897684991,0.16754664,66240.0,66236.0,0.075603]
[1729897685290,0.16754664,66243.0,66237.0,0.1071]
[1729897685486,0.3608,66246.0,66237.0,0.1071]
[1729897685882,0.16754664,66240.0,66234.0,0.3608]
[1729897686090,0.33509328,66235.0,66234.0,0.3608]
[1729897686588,0.3608,66240.0,66234.0,0.3608]
[1729897686791,0.33509328,66241.0,66234.0,0.3608]
[1729897687191,0.16754664,66250.0,66234.0,0.3608]
[1729897687388,0.16754664,66250.0,66235.0,0.23952]
[1729897687691,0.16754664,66247.0,66239.0,0.0756]
[1729897687886,0.3608,66253.0,66236.0,0.1014]
[1729897688183,0.3608,66253.0,66242.0,0.075597]
[1729897688789,0.3608,66253.0,66243.0,0.075595]
[1729897688989,0.3608,66253.0,66246.0,0.075592]
[1729897689194,0.3608,66253.0,66244.0,0.56]
[1729897689381,0.16754664,66251.0,66244.0,0.56]
[1729897690289,0.00015793,66252.0,66250.0,0.3608]
[1729897690478,0.3608,66262.0,66253.0,0.075584]
[1729897690684,0.16754664,66267.0,66257.0,0.3608]
[1729897691093,0.16754664,66276.0,66264.0,0.3608]
[1729897691297,0.3608,66284.0,66275.0,0.3608]
[1729897691588,0.16754664,66285.0,66276.0,0.23952]
[1729897691784,0.16754664,66296.0,66276.0,0.315078]
[1729897691981,0.3608,66292.0,66275.0,0.197]
[1729897692185,0.3608,66292.0,66220.0,0.3608]
[1729897692186,0.075563,66272.0,66220.0,0.3608]
[1729897692487,0.16754664,66248.0,66243.0,0.3608]
[1729897692680,0.3608,66255.0,66243.0,0.3608]
[1729897693871,0.3608,66245.0,66238.0,0.1013]
[1729897694058,0.3608,66245.0,66237.0,0.3608]
[1729897694059,0.16754664,66238.0,66237.0,0.3608]
[1729897694257,0.16754664,66238.0,66227.0,0.3608]
[1729897694461,0.16754664,66227.0,66222.0,0.2093]
[1729897694669,0.3608,66223.0,66222.0,0.2093]
[1729897695164,0.16754664,66227.0,66222.0,0.2093]
[1729897695351,0.00018681,66226.0,66222.0,0.2093]
[1729897695660,0.3608,66231.0,66222.0,0.2093]
[1729897696064,0.00011935,66230.0,66224.0,0.075618]
[1729897696364,0.3608,66233.0,66222.0,0.2093]
[1729897697164,0.3608,66233.0,66226.0,0.3608]
[1729897697165,0.00018299,66232.0,66226.0,0.3608]
[1729897697358,0.00018681,66231.0,66226.0,0.3608]
[1729897697662,0.36292,66233.0,66227.0,0.255]
[1729897697966,0.075586,66252.0,66226.0,0.3608]
[1729897697967,0.3608,66238.0,66233.0,0.075607]
[1729897698164,0.3608,66238.0,66228.0,0.255]
[1729897698371,0.3608,66238.0,66237.0,0.075603]
[1729897698669,0.16754664,66254.0,66237.0,0.3608]
[1729897698860,0.16754664,66254.0,66241.0,0.075598]
[1729897699056,0.16754664,66254.0,66242.0,0.92]
[1729897699369,0.16754664,66254.0,66243.0,0.075596]
[1729897700668,0.16754664,66254.0,66244.0,0.075595]
[1729897700871,0.36284,66255.0,66244.0,0.3608]
[1729897701076,0.00014352,66254.0,66251.0,0.3608]
[1729897701370,0.3608,66264.0,66254.0,0.075583]
[1729897701575,0.3608,66264.0,66256.0,0.075581]
[1729897701763,0.3608,66264.0,66255.0,0.255]
[1729897701764,0.3608,66264.0,66257.0,0.3608]
[1729897701960,0.3608,66264.0,66259.0,0.075577]
[1729897702660,0.3608,66270.0,66263.0,0.3608]
[1729897702868,0.3608,66277.0,66263.0,0.3608]
[1729897703061,0.3608,66264.0,66255.0,0.255]
[1729897703258,0.16754664,66259.0,66255.0,0.255]
[1729897703559,0.3608,66256.0,66254.0,0.38092]
[1729897703767,0.3628,66264.0,66255.0,0.7078]
[1729897703963,0.3608,66270.0,66261.0,0.075575]
[1729897704168,0.3608,66270.0,66259.0,0.3608]
[1729897704468,0.3608,66270.0,66265.0,0.075571]
[1729897704669,0.3608,66270.0,66266.0,0.07557]
[1729897704869,0.3608,66270.0,66267.0,0.92]
[1729897705070,0.52834664,66270.0,66267.0,0.92]
[1729897705269,0.52834664,66270.0,66259.0,0.3608]
[1729897705570,0.52834664,66270.0,66264.0,0.075571]
[1729897705767,0.52834664,66270.0,66265.0,0.995571]
[1729897705987,0.52834664,66270.0,66265.0,0.92]
[1729897706158,0.3608,66276.0,66267.0,0.075569]
[1729897706365,0.3608,66283.0,66272.0,0.075563]
[1729897706869,0.3608,66283.0,66265.0,1.2808]
[1729897706870,0.3608,66283.0,66274.0,0.075561]
[1729897707567,0.3608,66277.0,66265.0,1.2808]
[1729897707760,0.16754664,66272.0,66266.0,0.07557]
[1729897708070,0.3608,66277.0,66266.0,0.07557]
[1729897708271,0.3608,66267.0,66265.0,0.92]
[1729897708464,0.3608,66266.0,66258.0,0.24604]
[1729897708659,0.3608,66259.0,66258.0,0.24604]
[1729897708863,0.3608,66266.0,66258.0,0.24604]
[1729897709262,0.3608,66266.0,66192.0,0.11944354]
[1729897709263,0.055,66245.0,66192.0,0.11944354]
[1729897709467,0.3608,66193.0,66185.0,0.09009181]
[1729897709662,0.3608,66201.0,66178.0,0.33509328]
[1729897709663,0.3608,66201.0,66195.0,0.07565]
[1729897710073,0.3608,66201.0,66193.0,1.5]
[1729897710074,0.3608,66201.0,66197.0,0.075648]
[1729897710262,0.3608,66201.0,66194.0,0.4532]
[1729897710462,0.00013509,66200.0,66199.0,0.075646]
[1729897710665,0.3608,66201.0,66195.0,0.4532]
[1729897710965,0.3608,66201.0,66196.0,0.07565]
[1729897711179,0.3608,66198.0,66187.0,0.4532]
[1729897711364,0.3608,66198.0,66193.0,0.075653]
[1729897711777,0.3608,66198.0,66197.0,1.5]
[1729897712170,0.3608,66198.0,66197.0,1.9532]
[1729897713678,0.3608,66198.0,66197.0,1.5]
[1729897714972,0.3608,66198.0,66197.0,2.028849]
[1729897717072,0.3608,66205.0,66197.0,2.028849]
[1729897717073,0.3608,66205.0,66204.0,0.075641]
[1729897717482,0.3608,66205.0,66204.0,0.528801]
[1729897717680,0.3608,66205.0,66204.0,2.028801]
[1729897718280,0.3608,66213.0,66205.0,0.075639]
[1729897718479,0.3608,66206.0,66204.0,1.5]
[1729897718673,0.07564,66205.0,66204.0,1.5]
[1729897719276,0.07575274,66205.0,66204.0,1.5]
[1729897719579,0.07564,66205.0,66204.0,1.5]
[1729897720489,0.3608,66206.0,66204.0,1.5]
[1729897720997,0.00013905,66205.0,66204.0,1.5]
[1729897721189,0.3608,66206.0,66204.0,1.5]
[1729897721379,0.3608,66206.0,66205.0,0.45312]
[1729897721580,0.3608,66206.0,66205.0,0.52876]
[1729897721986,0.3608,66206.0,66205.0,2.02876]
[1729897722688,0.3608,66206.0,66205.0,1.95312]
[1729897722890,0.3608,66206.0,66205.0,2.02876]
[1729897723387,0.3608,66206.0,66205.0,1.5]
[1729897723388,0.52834664,66206.0,66205.0,1.5]
[1729897723682,0.52834664,66206.0,66172.0,0.38108]
[1729897723683,1.58146664,66206.0,66169.0,0.25052]
[1729897723884,0.3608,66185.0,66177.0,0.075671]
[1729897724087,0.3608,66178.0,66177.0,0.075671]
[1729897724580,0.36099332,66178.0,66177.0,1.618991]
[1729897724787,0.3608,66178.0,66177.0,1.416191]
[1729897724981,0.3608,66185.0,66177.0,1.79384]
[1729897725182,0.3608,66179.0,66177.0,1.34052]
[1729897725379,0.3608,66179.0,66178.0,0.07567]
[1729897726082,0.3608,66179.0,66178.0,1.16567]
[1729897726993,0.3608,66179.0,66178.0,1.09]
[1729897727182,0.7216,66179.0,66178.0,1.34056]
[1729897727984,0.7216,66179.0,66178.0,1.09]
[1729897728189,0.7216,66179.0,66178.0,1.34056]
[1729897729092,0.3608,66179.0,66178.0,1.34056]
[1729897729882,0.3608,66189.0,66185.0,0.075662]
[1729897730883,0.3608,66189.0,66186.0,0.25056]
[1729897731086,0.00017843,66188.0,66186.0,0.25056]
[1729897731289,0.00012345,66187.0,66186.0,0.25056]
[1729897731493,0.00014666,66187.0,66186.0,1.34056]
[1729897731699,0.07566,66187.0,66186.0,1.09]
[1729897731992,0.53034664,66189.0,66186.0,1.09]
[1729897732197,0.52834664,66189.0,66186.0,1.09]
[1729897732582,0.60400464,66189.0,66186.0,1.09]
[1729897733695,0.52834664,66189.0,66186.0,1.09]
[1729897733888,0.07566,66188.0,66186.0,1.09]
[1729897734993,0.00014631,66187.0,66186.0,1.09]
[1729897735187,0.52834664,66189.0,66186.0,1.09]
[1729897735387,0.3608,66189.0,66186.0,1.09]
[1729897736392,0.07566,66187.0,66186.0,1.09]
[1729897736800,0.52894,66187.0,66186.0,1.09]
[1729897737216,0.075669,66180.0,66174.0,0.00226635]
[1729897737424,0.45328,66187.0,66147.0,0.6114]
[1729897737425,0.16754664,66174.0,66147.0,0.6114]
[1729897737724,0.3608,66152.0,66151.0,0.075701]
[1729897738324,0.16754664,66141.0,66129.0,0.075726]
[1729897738541,0.3608,66130.0,66119.0,0.3608]
[1729897738823,0.3608,66133.0,66120.0,1.17]
[1729897739019,0.3608,66144.0,66126.0,0.3608]
[1729897739226,0.16754664,66139.0,66126.0,0.3608]
[1729897739416,0.3608,66131.0,66127.0,0.22695281]
[1729897739714,0.3608,66131.0,66120.0,1.5308]
[1729897740371,0.3608,66123.0,66120.0,1.17]
[1729897740539,0.3608,66125.0,66120.0,1.17]
[1729897740827,0.1994,66157.0,66121.0,0.5864688]
[1729897740828,0.3608,66140.0,66121.0,0.5864688]
[1729897741030,0.3608,66144.0,66134.0,0.33509328]
[1729897741223,0.3608,66153.0,66144.0,0.075708]
[1729897741421,0.3608,66153.0,66137.0,0.075717]
[1729897741422,0.3608,66147.0,66137.0,0.075717]